[Event "*** Titled Tuesday Blitz"]
[Site "Chess.com"]
[Date "2020.05.05"]
[Round "8"]
[White "CHENNAIBOND"]
[Black "AwesomeMango"]
[Result "0-1"]
[WhiteElo "1258"]
[BlackElo "2217"]
[TimeControl "180+1"]
[EndTime "11:34:42 PDT"]
[Termination "AwesomeMango won by resignation"]

1. e4 {[%clk 0:02:36.8]} 1... c5 {[%clk 0:02:59.3]} 2. Nf3 {[%clk 0:02:36.7]}
2... d6 {[%clk 0:02:59.3]} 3. d4 {[%clk 0:02:36.8]} 3... cxd4 {[%clk 0:02:59.3]}
4. Nxd4 {[%clk 0:02:37.7]} 4... Nf6 {[%clk 0:02:59.4]} 5. Nc3 {[%clk 0:02:38.4]}
5... a6 {[%clk 0:02:59.2]} 6. h3 {[%clk 0:02:39]} 6... e6 {[%clk 0:02:58.4]} 7.
g4 {[%clk 0:02:38.8]} 7... Nfd7 {[%clk 0:02:58]} 8. g5 {[%clk 0:02:39.1]} 8...
Be7 {[%clk 0:02:55.1]} 9. Be3 {[%clk 0:02:38.1]} 9... b5 {[%clk 0:02:27.6]} 10.
a3 {[%clk 0:02:36]} 10... Bb7 {[%clk 0:02:26.9]} 11. Qd2 {[%clk 0:02:30.3]}
11... Nc6 {[%clk 0:02:19.3]} 12. f4 {[%clk 0:02:30.2]} 12... Nxd4 {[%clk
0:02:13.3]} 13. Bxd4 {[%clk 0:02:31.1]} 13... e5 {[%clk 0:02:12.5]} 14. Be3
{[%clk 0:02:27.1]} 14... exf4 {[%clk 0:02:04.4]} 15. Bxf4 {[%clk 0:02:26.7]}
15... h6 {[%clk 0:01:55.1]} 16. Rg1 {[%clk 0:02:08.6]} 16... hxg5 {[%clk
0:01:43.8]} 17. Bxg5 {[%clk 0:02:08.4]} 17... Bxg5 {[%clk 0:01:39.3]} 18. Rxg5
{[%clk 0:02:08.3]} 18... Qf6 {[%clk 0:01:31.8]} 19. O-O-O {[%clk 0:01:58.6]}
19... Ne5 {[%clk 0:01:21.3]} 20. Rf5 {[%clk 0:01:51.4]} 20... Qh6 {[%clk
0:01:15]} 21. Kb1 {[%clk 0:01:26.6]} 21... Qxd2 {[%clk 0:01:08.2]} 22. Rxd2
{[%clk 0:01:27.5]} 22... Ke7 {[%clk 0:01:07.9]} 23. Nd5+ {[%clk 0:01:17.7]}
23... Bxd5 {[%clk 0:01:00.5]} 24. Rxd5 {[%clk 0:01:18]} 24... Rh4 {[%clk
0:00:58.5]} 25. Bg2 {[%clk 0:01:05.4]} 25... g6 {[%clk 0:00:48.8]} 26. Rf1
{[%clk 0:01:02.5]} 26... Rc8 {[%clk 0:00:34.9]} 27. Rfd1 {[%clk 0:01:00]} 27...
Nc4 {[%clk 0:00:29.6]} 28. R1d3 {[%clk 0:00:45.5]} 28... Rf4 {[%clk 0:00:22.3]}
29. Ka2 {[%clk 0:00:37.3]} 29... Rf2 {[%clk 0:00:20.2]} 30. Bf3 {[%clk
0:00:37.6]} 30... Rxc2 {[%clk 0:00:18.4]} 31. Kb3 {[%clk 0:00:36.8]} 31... Rxb2+
{[%clk 0:00:18.1]} 32. Kc3 {[%clk 0:00:36.2]} 0-1

[Event "*** Titled Tuesday Blitz"]
[Site "Chess.com"]
[Date "2020.05.05"]
[Round "8"]
[White "Kotofeyca"]
[Black "tamarozi99"]
[Result "1-0"]
[WhiteElo "2404"]
[BlackElo "1990"]
[TimeControl "180+1"]
[EndTime "11:34:43 PDT"]
[Termination "Kotofeyca won on time"]

1. d4 {[%clk 0:03:00.9]} 1... Nf6 {[%clk 0:02:59.1]} 2. c4 {[%clk 0:03:00.1]}
2... c5 {[%clk 0:02:58.4]} 3. Nf3 {[%clk 0:02:59.7]} 3... g6 {[%clk 0:02:36.5]}
4. Nc3 {[%clk 0:02:58.6]} 4... cxd4 {[%clk 0:02:33.8]} 5. Nxd4 {[%clk
0:02:59.5]} 5... Nc6 {[%clk 0:02:33.3]} 6. g3 {[%clk 0:02:58.9]} 6... d6 {[%clk
0:02:31.5]} 7. Bg2 {[%clk 0:02:58.6]} 7... Nxd4 {[%clk 0:02:27.9]} 8. Qxd4
{[%clk 0:02:59.5]} 8... Bg7 {[%clk 0:02:28]} 9. O-O {[%clk 0:02:58]} 9... O-O
{[%clk 0:02:27.4]} 10. b3 {[%clk 0:02:57.4]} 10... Ne4 {[%clk 0:02:00.2]} 11.
Qxe4 {[%clk 0:02:55.3]} 11... Bxc3 {[%clk 0:01:59.2]} 12. Bh6 {[%clk 0:02:51.5]}
12... Bxa1 {[%clk 0:01:36.9]} 13. Bxf8 {[%clk 0:02:50.2]} 13... Bf6 {[%clk
0:01:29.3]} 14. Bh6 {[%clk 0:02:47.1]} 14... Rb8 {[%clk 0:01:29.3]} 15. Rd1
{[%clk 0:02:39.8]} 15... Bf5 {[%clk 0:01:27.8]} 16. Qf4 {[%clk 0:02:29.6]} 16...
Qc8 {[%clk 0:01:04.6]} 17. e4 {[%clk 0:02:26.2]} 17... Bg4 {[%clk 0:01:00.1]}
18. Rc1 {[%clk 0:02:07.9]} 18... Be5 {[%clk 0:00:41.7]} 19. Qe3 {[%clk 0:02:06]}
19... Bf6 {[%clk 0:00:26.4]} 20. Qxa7 {[%clk 0:01:51.4]} 20... Ra8 {[%clk
0:00:25.9]} 21. Qb6 {[%clk 0:01:50.8]} 21... Rxa2 {[%clk 0:00:25.5]} 22. e5
{[%clk 0:01:33]} 22... Bxe5 {[%clk 0:00:19.8]} 23. Bxb7 {[%clk 0:01:32.6]} 23...
Qb8 {[%clk 0:00:15.3]} 24. c5 {[%clk 0:01:32.5]} 24... Bd4 {[%clk 0:00:14.1]}
25. b4 {[%clk 0:01:31.8]} 25... Bxf2+ {[%clk 0:00:11.5]} 26. Kh1 {[%clk
0:01:32]} 26... dxc5 {[%clk 0:00:06.4]} 27. bxc5 {[%clk 0:01:28.7]} 27... Re2
{[%clk 0:00:04]} 28. Qb4 {[%clk 0:01:18.2]} 28... Ra2 {[%clk 0:00:01.8]} 29. Rb1
{[%clk 0:01:01.9]} 29... Bh3 {[%clk 0:00:01.7]} 30. Qc4 {[%clk 0:00:55.1]} 30...
Bg4 {[%clk 0:00:01.2]} 31. Qxa2 {[%clk 0:00:53.4]} 1-0

[Event "*** Titled Tuesday Blitz"]
[Site "Chess.com"]
[Date "2020.05.05"]
[Round "8"]
[White "tioloko"]
[Black "Gloomy_Wanderer"]
[Result "0-1"]
[WhiteElo "2625"]
[BlackElo "2788"]
[TimeControl "180+1"]
[EndTime "11:34:49 PDT"]
[Termination "Gloomy_Wanderer won by checkmate"]

1. d4 {[%clk 0:02:56.4]} 1... Nf6 {[%clk 0:02:59.9]} 2. Nf3 {[%clk 0:02:53.6]}
2... e6 {[%clk 0:03:00.3]} 3. c4 {[%clk 0:02:53.2]} 3... d5 {[%clk 0:03:00]} 4.
e3 {[%clk 0:02:51.7]} 4... b6 {[%clk 0:02:56.7]} 5. Be2 {[%clk 0:02:51.6]} 5...
Bb7 {[%clk 0:02:56.8]} 6. O-O {[%clk 0:02:52.1]} 6... Bd6 {[%clk 0:02:56.9]} 7.
Nc3 {[%clk 0:02:51.9]} 7... a6 {[%clk 0:02:57.2]} 8. b3 {[%clk 0:02:51]} 8...
Nbd7 {[%clk 0:02:57.4]} 9. Bb2 {[%clk 0:02:51.4]} 9... O-O {[%clk 0:02:57.6]}
10. Rc1 {[%clk 0:02:51.8]} 10... Qe7 {[%clk 0:02:57.6]} 11. Qd2 {[%clk
0:02:46.2]} 11... Rad8 {[%clk 0:02:45.5]} 12. Rfd1 {[%clk 0:02:44.9]} 12... Ne4
{[%clk 0:02:45.6]} 13. Qe1 {[%clk 0:02:41.7]} 13... f5 {[%clk 0:02:45.3]} 14.
Bd3 {[%clk 0:02:38.2]} 14... dxc4 {[%clk 0:02:24.4]} 15. bxc4 {[%clk 0:02:32.8]}
15... Nxc3 {[%clk 0:02:18.5]} 16. Bxc3 {[%clk 0:02:04.2]} 16... Bxf3 {[%clk
0:02:17.3]} 17. gxf3 {[%clk 0:02:05.1]} 17... Qg5+ {[%clk 0:02:15.5]} 18. Kf1
{[%clk 0:01:56.2]} 18... Bxh2 {[%clk 0:02:04.5]} 19. Ke2 {[%clk 0:01:54.1]}
19... Bd6 {[%clk 0:02:04]} 20. Qd2 {[%clk 0:01:50.6]} 20... e5 {[%clk
0:02:01.8]} 21. Rg1 {[%clk 0:01:47]} 21... Qe7 {[%clk 0:02:01.3]} 22. Kd1 {[%clk
0:01:27.9]} 22... exd4 {[%clk 0:01:53]} 23. exd4 {[%clk 0:01:27.8]} 23... g6
{[%clk 0:01:52.4]} 24. Kc2 {[%clk 0:01:26.6]} 24... c5 {[%clk 0:01:44.4]} 25.
Rce1 {[%clk 0:01:26]} 25... Qf7 {[%clk 0:01:39]} 26. Qh6 {[%clk 0:01:24.8]}
26... Rfe8 {[%clk 0:01:26.5]} 27. d5 {[%clk 0:00:58.8]} 27... Be5 {[%clk
0:01:24.5]} 28. Rg5 {[%clk 0:00:43.9]} 28... Bxc3 {[%clk 0:01:21.3]} 29. Rxe8+
{[%clk 0:00:34.9]} 29... Rxe8 {[%clk 0:01:18.6]} 30. Kxc3 {[%clk 0:00:31.8]}
30... Kh8 {[%clk 0:00:55.9]} 31. Kc2 {[%clk 0:00:26.7]} 31... Ne5 {[%clk
0:00:52.3]} 32. f4 {[%clk 0:00:21.3]} 32... Nxd3 {[%clk 0:00:49.1]} 33. Kxd3
{[%clk 0:00:22.2]} 33... b5 {[%clk 0:00:48]} 34. a3 {[%clk 0:00:18.1]} 34...
bxc4+ {[%clk 0:00:48.3]} 35. Kxc4 {[%clk 0:00:18.4]} 35... Re4+ {[%clk
0:00:48.9]} 36. Kxc5 {[%clk 0:00:18.7]} 36... Qc7# {[%clk 0:00:47.9]} 0-1

[Event "*** Titled Tuesday Blitz"]
[Site "Chess.com"]
[Date "2020.05.05"]
[Round "8"]
[White "boasovietica"]
[Black "vladimirdamjanovic"]
[Result "0-1"]
[WhiteElo "2456"]
[BlackElo "2611"]
[TimeControl "180+1"]
[EndTime "11:34:51 PDT"]
[Termination "vladimirdamjanovic won by resignation"]

1. e4 {[%clk 0:03:00.9]} 1... c6 {[%clk 0:02:57.5]} 2. d4 {[%clk 0:02:59.9]}
2... d5 {[%clk 0:02:58.2]} 3. exd5 {[%clk 0:03:00.8]} 3... cxd5 {[%clk
0:02:59.1]} 4. Bd3 {[%clk 0:03:00.6]} 4... Nc6 {[%clk 0:02:59.2]} 5. c3 {[%clk
0:03:00.1]} 5... Nf6 {[%clk 0:02:59.8]} 6. Ne2 {[%clk 0:02:59.7]} 6... Bg4
{[%clk 0:03:00.3]} 7. O-O {[%clk 0:02:58.8]} 7... e6 {[%clk 0:03:00.2]} 8. Qe1
{[%clk 0:02:57.7]} 8... Bd6 {[%clk 0:02:58.8]} 9. f3 {[%clk 0:02:53]} 9... Bh5
{[%clk 0:02:58.1]} 10. Qh4 {[%clk 0:02:53.3]} 10... O-O {[%clk 0:02:43.1]} 11.
Bxh7+ {[%clk 0:02:52.4]} 11... Kxh7 {[%clk 0:02:35.2]} 12. Bg5 {[%clk
0:02:52.6]} 12... Rh8 {[%clk 0:01:59]} 13. g4 {[%clk 0:02:44.2]} 13... Kg8
{[%clk 0:01:57.9]} 14. gxh5 {[%clk 0:02:43.7]} 14... Be7 {[%clk 0:01:56.3]} 15.
h6 {[%clk 0:02:41.8]} 15... Nd7 {[%clk 0:01:34.8]} 16. Bxe7 {[%clk 0:02:33.1]}
16... Nxe7 {[%clk 0:01:35.7]} 17. Kh1 {[%clk 0:02:24.1]} 17... Rxh6 {[%clk
0:01:34.6]} 18. Qf4 {[%clk 0:02:24.1]} 18... Ng6 {[%clk 0:01:14.1]} 19. Qg3
{[%clk 0:02:18.7]} 19... Nf6 {[%clk 0:01:10.4]} 20. Nd2 {[%clk 0:02:15]} 20...
Nh5 {[%clk 0:01:07.3]} 21. Qg4 {[%clk 0:02:10.9]} 21... Qc7 {[%clk 0:00:58.7]}
22. f4 {[%clk 0:02:09.1]} 22... Nf6 {[%clk 0:00:37.5]} 23. Qg3 {[%clk
0:02:01.8]} 23... Nh4 {[%clk 0:00:33.6]} 24. Rg1 {[%clk 0:01:53.1]} 24... Nf5
{[%clk 0:00:31.9]} 25. Qf2 {[%clk 0:01:38.7]} 25... Kh7 {[%clk 0:00:29.7]} 26.
Nf3 {[%clk 0:01:32.4]} 26... Rh8 {[%clk 0:00:28.7]} 27. Ng5+ {[%clk 0:01:27.6]}
27... Kg8 {[%clk 0:00:28.2]} 28. Rg2 {[%clk 0:01:28]} 28... Ne4 {[%clk
0:00:21.9]} 29. Nxe4 {[%clk 0:01:19.1]} 29... dxe4 {[%clk 0:00:22.8]} 30. Rag1
{[%clk 0:01:18.4]} 30... Qc6 {[%clk 0:00:18.6]} 31. d5 {[%clk 0:01:03]} 31...
Qxd5 {[%clk 0:00:18]} 32. Qxa7 {[%clk 0:00:55.4]} 32... e3 {[%clk 0:00:09.2]}
33. Qb8+ {[%clk 0:00:55.1]} 33... Kh7 {[%clk 0:00:09.7]} 34. Qe5 {[%clk
0:00:46.3]} 34... Rxh2+ {[%clk 0:00:09.7]} 0-1

[Event "*** Titled Tuesday Blitz"]
[Site "Chess.com"]
[Date "2020.05.05"]
[Round "8"]
[White "CrushingKings"]
[Black "Lubov_Gordyk"]
[Result "0-1"]
[WhiteElo "2464"]
[BlackElo "2638"]
[TimeControl "180+1"]
[EndTime "11:34:52 PDT"]
[Termination "Lubov_Gordyk won on time"]

1. e4 {[%clk 0:03:00.9]} 1... g6 {[%clk 0:02:59.7]} 2. d4 {[%clk 0:02:55.9]}
2... Bg7 {[%clk 0:02:59.7]} 3. Nc3 {[%clk 0:02:56.3]} 3... d6 {[%clk 0:02:59.9]}
4. Be3 {[%clk 0:02:54.8]} 4... a6 {[%clk 0:03:00]} 5. f3 {[%clk 0:02:54.9]} 5...
Nd7 {[%clk 0:02:58.7]} 6. Qd2 {[%clk 0:02:55.2]} 6... b5 {[%clk 0:02:58.5]} 7.
h4 {[%clk 0:02:55]} 7... h5 {[%clk 0:02:57.9]} 8. Nh3 {[%clk 0:02:54.8]} 8...
Bb7 {[%clk 0:02:57.9]} 9. Ng5 {[%clk 0:02:54.9]} 9... Qc8 {[%clk 0:02:57.8]} 10.
O-O-O {[%clk 0:02:32.8]} 10... c5 {[%clk 0:02:57.2]} 11. dxc5 {[%clk 0:02:28.2]}
11... Nxc5 {[%clk 0:02:57.3]} 12. Bd4 {[%clk 0:02:27]} 12... f6 {[%clk
0:02:46.9]} 13. Nh3 {[%clk 0:02:10.3]} 13... Bh6 {[%clk 0:02:28.9]} 14. Be3
{[%clk 0:02:07.2]} 14... Bxe3 {[%clk 0:02:18.3]} 15. Qxe3 {[%clk 0:02:08.1]}
15... Nh6 {[%clk 0:02:16.6]} 16. Nf4 {[%clk 0:02:06.1]} 16... Kf7 {[%clk
0:02:16.4]} 17. Ncd5 {[%clk 0:01:55.6]} 17... Qd8 {[%clk 0:02:05.1]} 18. Be2
{[%clk 0:01:34.1]} 18... e6 {[%clk 0:01:57.8]} 19. Nb4 {[%clk 0:01:00.5]} 19...
Qb6 {[%clk 0:01:56.6]} 20. Kb1 {[%clk 0:00:50.6]} 20... Rad8 {[%clk 0:01:52.7]}
21. g4 {[%clk 0:00:50.2]} 21... hxg4 {[%clk 0:01:47.8]} 22. h5 {[%clk
0:00:50.3]} 22... g5 {[%clk 0:01:44.3]} 23. Ng6 {[%clk 0:00:50.2]} 23... Rhe8
{[%clk 0:01:36.1]} 24. fxg4 {[%clk 0:00:36.4]} 24... Na4 {[%clk 0:01:33.9]} 25.
Qf3 {[%clk 0:00:28.8]} 25... Nc5 {[%clk 0:01:28.2]} 26. Rhf1 {[%clk 0:00:21.7]}
26... Nxe4 {[%clk 0:01:27.1]} 27. Ka1 {[%clk 0:00:14.4]} 27... Ng8 {[%clk
0:01:26.8]} 28. Qb3 {[%clk 0:00:08.9]} 28... Nc5 {[%clk 0:01:17.7]} 29. Qc3
{[%clk 0:00:08.6]} 29... a5 {[%clk 0:01:06.6]} 30. Nd3 {[%clk 0:00:06.8]} 30...
e5 {[%clk 0:01:06.5]} 31. Nf2 {[%clk 0:00:04.8]} 31... b4 {[%clk 0:01:00.1]} 32.
Qe3 {[%clk 0:00:04.4]} 32... a4 {[%clk 0:00:57.7]} 33. Nh3 {[%clk 0:00:04.4]}
33... Nb3+ {[%clk 0:00:56.8]} 34. Qxb3+ {[%clk 0:00:01.9]} 34... axb3 {[%clk
0:00:56.4]} 35. Nxg5+ {[%clk 0:00:01.7]} 35... Kg7 {[%clk 0:00:56.6]} 0-1

[Event "*** Titled Tuesday Blitz"]
[Site "Chess.com"]
[Date "2020.05.05"]
[Round "8"]
[White "Redbandit87"]
[Black "FMJoseHerrera"]
[Result "0-1"]
[WhiteElo "2452"]
[BlackElo "2588"]
[TimeControl "180+1"]
[EndTime "11:34:52 PDT"]
[Termination "FMJoseHerrera won by resignation"]

1. d4 {[%clk 0:03:00.9]} 1... Nf6 {[%clk 0:02:59.5]} 2. Bf4 {[%clk 0:02:59.2]}
2... c5 {[%clk 0:02:59.5]} 3. e3 {[%clk 0:02:59]} 3... g6 {[%clk 0:02:59.2]} 4.
Nf3 {[%clk 0:02:57.5]} 4... Bg7 {[%clk 0:02:59.6]} 5. Be2 {[%clk 0:02:57.6]}
5... O-O {[%clk 0:02:59.5]} 6. h3 {[%clk 0:02:56]} 6... cxd4 {[%clk 0:02:59.6]}
7. exd4 {[%clk 0:02:55.8]} 7... d6 {[%clk 0:03:00.5]} 8. c3 {[%clk 0:02:51.7]}
8... Nbd7 {[%clk 0:03:01.4]} 9. O-O {[%clk 0:02:50.7]} 9... a6 {[%clk
0:03:02.3]} 10. Bh2 {[%clk 0:02:50.6]} 10... b6 {[%clk 0:02:56.5]} 11. a4 {[%clk
0:02:49.7]} 11... Bb7 {[%clk 0:02:56.6]} 12. Re1 {[%clk 0:02:49.5]} 12... Re8
{[%clk 0:02:54.8]} 13. Bf1 {[%clk 0:02:47.8]} 13... Nf8 {[%clk 0:02:54.9]} 14.
Nbd2 {[%clk 0:02:46.4]} 14... Ne6 {[%clk 0:02:55]} 15. Qb3 {[%clk 0:02:39.9]}
15... Rb8 {[%clk 0:02:50.7]} 16. Rad1 {[%clk 0:02:35.4]} 16... Bd5 {[%clk
0:02:44.8]} 17. c4 {[%clk 0:02:29.3]} 17... Ba8 {[%clk 0:02:44.5]} 18. Rxe6
{[%clk 0:02:08]} 18... fxe6 {[%clk 0:02:42.3]} 19. Ng5 {[%clk 0:02:08.9]} 19...
Qd7 {[%clk 0:02:24.9]} 20. Re1 {[%clk 0:02:05.3]} 20... Bh6 {[%clk 0:02:23.4]}
21. Ndf3 {[%clk 0:01:57.6]} 21... Bxf3 {[%clk 0:02:21.1]} 22. Nxf3 {[%clk
0:01:58.5]} 22... Nh5 {[%clk 0:02:11.9]} 23. Re4 {[%clk 0:01:49.4]} 23... Rf8
{[%clk 0:01:56.7]} 24. Rh4 {[%clk 0:01:41.1]} 24... Bg7 {[%clk 0:01:30]} 25. Re4
{[%clk 0:01:34.9]} 25... Kh8 {[%clk 0:01:24.1]} 26. Ng5 {[%clk 0:01:29]} 26...
Rf6 {[%clk 0:01:24]} 27. g4 {[%clk 0:01:21.6]} 27... Bh6 {[%clk 0:01:24.2]} 28.
Nxh7 {[%clk 0:01:10.4]} 28... Kxh7 {[%clk 0:01:23.5]} 29. gxh5 {[%clk
0:01:10.7]} 29... gxh5 {[%clk 0:01:24.4]} 30. Bd3 {[%clk 0:01:08]} 30... Kh8
{[%clk 0:01:24]} 31. Bg3 {[%clk 0:01:06.1]} 31... Rg8 {[%clk 0:01:13.6]} 32. Kh2
{[%clk 0:01:01.9]} 32... Rf3 {[%clk 0:01:06.4]} 33. Qd1 {[%clk 0:00:58.2]} 33...
Rgf8 {[%clk 0:01:02.8]} 34. Be2 {[%clk 0:00:58.1]} 34... R3f5 {[%clk 0:00:53.4]}
35. Bxh5 {[%clk 0:00:56]} 35... Qc6 {[%clk 0:00:53.8]} 36. f3 {[%clk 0:00:34.3]}
36... Rxh5 {[%clk 0:00:52.6]} 37. d5 {[%clk 0:00:31.9]} 37... exd5 {[%clk
0:00:48.8]} 38. Rxe7 {[%clk 0:00:31]} 38... Qxc4 {[%clk 0:00:44]} 39. Bxd6
{[%clk 0:00:26.4]} 39... Bf4+ {[%clk 0:00:43.6]} 40. Bxf4 {[%clk 0:00:25.8]}
40... Qxf4+ {[%clk 0:00:44.5]} 41. Kg1 {[%clk 0:00:24.2]} 41... Qg3+ {[%clk
0:00:43.8]} 0-1

[Event "*** Titled Tuesday Blitz"]
[Site "Chess.com"]
[Date "2020.05.05"]
[Round "8"]
[White "grunbergmihai"]
[Black "Lunow"]
[Result "1-0"]
[WhiteElo "2391"]
[BlackElo "2209"]
[TimeControl "180+1"]
[EndTime "11:34:52 PDT"]
[Termination "grunbergmihai won on time"]

1. Nf3 {[%clk 0:03:00.9]} 1... c5 {[%clk 0:02:55.8]} 2. c4 {[%clk 0:02:56.9]}
2... Nc6 {[%clk 0:02:55.5]} 3. g3 {[%clk 0:02:56.7]} 3... g6 {[%clk 0:02:53.7]}
4. Bg2 {[%clk 0:02:57.6]} 4... Bg7 {[%clk 0:02:50.4]} 5. O-O {[%clk 0:02:58.5]}
5... e5 {[%clk 0:02:46]} 6. Nc3 {[%clk 0:02:56.8]} 6... Nge7 {[%clk 0:02:44.3]}
7. d3 {[%clk 0:02:56.7]} 7... d6 {[%clk 0:02:42.1]} 8. a3 {[%clk 0:02:56.7]}
8... O-O {[%clk 0:02:38.7]} 9. Rb1 {[%clk 0:02:57.6]} 9... a5 {[%clk 0:02:35.9]}
10. Bg5 {[%clk 0:02:56]} 10... f6 {[%clk 0:02:30.4]} 11. Bd2 {[%clk 0:02:55.4]}
11... Be6 {[%clk 0:02:22.9]} 12. Qc1 {[%clk 0:02:47.5]} 12... b6 {[%clk
0:02:05.8]} 13. Bh6 {[%clk 0:02:41.5]} 13... d5 {[%clk 0:02:00.3]} 14. Bxg7
{[%clk 0:02:39.6]} 14... Kxg7 {[%clk 0:01:54.6]} 15. cxd5 {[%clk 0:02:38.4]}
15... Nxd5 {[%clk 0:01:45.7]} 16. Nd2 {[%clk 0:02:30.8]} 16... Rb8 {[%clk
0:01:31.5]} 17. Nxd5 {[%clk 0:02:04]} 17... Bxd5 {[%clk 0:01:28]} 18. Bxd5
{[%clk 0:02:01]} 18... Qxd5 {[%clk 0:01:28.9]} 19. Qc4 {[%clk 0:02:00.5]} 19...
Qd7 {[%clk 0:01:24.6]} 20. Nf3 {[%clk 0:01:55.6]} 20... Rfe8 {[%clk 0:01:06.5]}
21. Rfc1 {[%clk 0:01:53.1]} 21... Nd4 {[%clk 0:00:55.7]} 22. Nxd4 {[%clk
0:01:49]} 22... exd4 {[%clk 0:00:55.3]} 23. Rc2 {[%clk 0:01:47.9]} 23... Re5
{[%clk 0:00:50.7]} 24. b4 {[%clk 0:01:31.4]} 24... axb4 {[%clk 0:00:34.9]} 25.
axb4 {[%clk 0:01:31.3]} 25... Rbe8 {[%clk 0:00:30.1]} 26. bxc5 {[%clk
0:01:26.5]} 26... bxc5 {[%clk 0:00:24.8]} 27. Qa2 {[%clk 0:01:16.4]} 27... h5
{[%clk 0:00:18.8]} 28. h4 {[%clk 0:01:14.1]} 28... g5 {[%clk 0:00:16.2]} 29.
hxg5 {[%clk 0:01:13]} 29... Rxg5 {[%clk 0:00:14.6]} 30. Qa5 {[%clk 0:00:56.9]}
30... h4 {[%clk 0:00:13]} 31. Rxc5 {[%clk 0:00:53.4]} 31... Rxc5 {[%clk
0:00:08]} 32. Qxc5 {[%clk 0:00:52.8]} 1-0

[Event "*** Titled Tuesday Blitz"]
[Site "Chess.com"]
[Date "2020.05.05"]
[Round "8"]
[White "mamonika"]
[Black "WinstonSilvakov"]
[Result "1-0"]
[WhiteElo "1980"]
[BlackElo "2156"]
[TimeControl "180+1"]
[EndTime "11:34:52 PDT"]
[Termination "mamonika won by resignation"]

1. e4 {[%clk 0:02:58.9]} 1... Nf6 {[%clk 0:03:00.9]} 2. e5 {[%clk 0:02:57.9]}
2... Nd5 {[%clk 0:02:58.5]} 3. d4 {[%clk 0:02:58.8]} 3... d6 {[%clk 0:02:57.9]}
4. c4 {[%clk 0:02:59.7]} 4... Nb6 {[%clk 0:02:57.6]} 5. exd6 {[%clk 0:02:56.3]}
5... cxd6 {[%clk 0:02:57]} 6. Nc3 {[%clk 0:02:56.8]} 6... g6 {[%clk 0:02:56.8]}
7. Nf3 {[%clk 0:02:54.1]} 7... Bg7 {[%clk 0:02:57.1]} 8. Bd3 {[%clk 0:02:54.2]}
8... Nc6 {[%clk 0:02:57]} 9. Be3 {[%clk 0:02:53.6]} 9... O-O {[%clk 0:02:57.3]}
10. O-O {[%clk 0:02:52.6]} 10... e5 {[%clk 0:02:57.6]} 11. dxe5 {[%clk
0:02:46.2]} 11... dxe5 {[%clk 0:02:55.7]} 12. c5 {[%clk 0:02:37.1]} 12... Nd5
{[%clk 0:02:51.9]} 13. Nxd5 {[%clk 0:02:31.2]} 13... Qxd5 {[%clk 0:02:48.7]} 14.
Qc2 {[%clk 0:02:29.7]} 14... Nb4 {[%clk 0:02:47.2]} 15. Qc4 {[%clk 0:02:24.5]}
15... Qxc4 {[%clk 0:02:33]} 16. Bxc4 {[%clk 0:02:24.4]} 16... Nc2 {[%clk
0:02:33]} 17. Rac1 {[%clk 0:02:16.1]} 17... Nxe3 {[%clk 0:02:31.9]} 18. fxe3
{[%clk 0:02:17]} 18... h6 {[%clk 0:02:23.1]} 19. Rfd1 {[%clk 0:02:14]} 19... Bg4
{[%clk 0:02:21.5]} 20. Bd5 {[%clk 0:02:00.4]} 20... Rab8 {[%clk 0:02:12.1]} 21.
h3 {[%clk 0:02:00.3]} 21... Bxf3 {[%clk 0:02:06]} 22. gxf3 {[%clk 0:01:55.1]}
22... Rfd8 {[%clk 0:01:58.4]} 23. Rd2 {[%clk 0:01:48]} 23... Kf8 {[%clk
0:01:57.9]} 24. Re1 {[%clk 0:01:48.1]} 24... Rd7 {[%clk 0:01:40.3]} 25. Red1
{[%clk 0:01:41.3]} 25... Ke7 {[%clk 0:01:34.4]} 26. Kf2 {[%clk 0:01:27.9]} 26...
f5 {[%clk 0:01:32.1]} 27. e4 {[%clk 0:01:26.9]} 27... Rc8 {[%clk 0:01:29.1]} 28.
b4 {[%clk 0:01:24.2]} 28... a5 {[%clk 0:01:27.7]} 29. a3 {[%clk 0:01:22.7]}
29... axb4 {[%clk 0:01:27.9]} 30. axb4 {[%clk 0:01:22.5]} 30... fxe4 {[%clk
0:01:25.2]} 31. Bxe4 {[%clk 0:01:21.6]} 31... Rxd2+ {[%clk 0:01:12.3]} 32. Rxd2
{[%clk 0:01:22.5]} 32... Rc7 {[%clk 0:01:07.2]} 33. Bxg6 {[%clk 0:01:21.5]}
33... Kf6 {[%clk 0:01:07.4]} 34. Be4 {[%clk 0:01:20.9]} 34... Kg5 {[%clk
0:01:06.9]} 35. Kg3 {[%clk 0:01:16]} 35... h5 {[%clk 0:01:06]} 36. h4+ {[%clk
0:01:14.2]} 36... Kf6 {[%clk 0:01:05.8]} 37. Rd6+ {[%clk 0:01:14.6]} 37... Ke7
{[%clk 0:01:05.3]} 38. Bg6 {[%clk 0:01:05.6]} 38... Bf8 {[%clk 0:01:02]} 39.
Bxh5 {[%clk 0:01:05]} 39... Rc8 {[%clk 0:00:56.9]} 40. Bg4 {[%clk 0:01:05]}
40... Ra8 {[%clk 0:00:51.5]} 41. Rd7+ {[%clk 0:01:01.4]} 41... Kf6 {[%clk
0:00:50.2]} 42. Rxb7 {[%clk 0:01:00.7]} 42... Ra4 {[%clk 0:00:49.5]} 43. c6
{[%clk 0:00:53.3]} 43... Bh6 {[%clk 0:00:50.4]} 44. c7 {[%clk 0:00:50.2]} 44...
Ra2 {[%clk 0:00:46.1]} 45. Rb6+ {[%clk 0:00:46.7]} 45... Kg7 {[%clk 0:00:44.1]}
46. Rxh6 {[%clk 0:00:46.7]} 1-0